Workbook

Sheet Analysis
B1: 2014-01-01 | C1: 2014-02-01 | D1: 2014-03-01 | E1: 2014-04-01 | F1: 2014-05-01 | G1: 2014-06-01 | H1: 2014-07-01 | I1: 2014-08-01 | J1: 2014-09-01 | K1: 2014-10-01
A2: Total Sales | B2: =RANDBETWEEN(1,100) -> 8 | C2: 20 | D2: 72 | E2: 12 | F2: 72 | G2: 96 | H2: 2 | I2: 46 | J2: 35 | K2: 22
A3: Gross Margin | B3: 60 | C3: 93 | D3: 6 | E3: 27 | F3: 18 | G3: 56 | H3: 57 | I3: 31 | J3: 15 | K3: 2
A4: Net Income | B4: 15 | C4: 14 | D4: 53 | E4: 2 | F4: 100 | G4: 17 | H4: 41 | I4: 2 | J4: 28 | K4: 88
A6: Propane Gross Margin | B6: =RANDBETWEEN(1,100) -> 81 | C6: 89 | D6: 25 | E6: 6 | F6: 60 | G6: 30 | H6: 11 | I6: 59 | J6: 17 | K6: 14
A7: Retail Gross Margin | B7: 75 | C7: 10 | D7: 53 | E7: 3 | F7: 37 | G7: 18 | H7: 65 | I7: 75 | J7: 95 | K7: 34
A8: Salary as Percentage of Sales | B8: 93 | C8: 71 | D8: 38 | E8: 70 | F8: 91 | G8: 77 | H8: 10 | I8: 29 | J8: 23 | K8: 98
A10: Current Ratio | B10: =RANDBETWEEN(1,100) -> 67 | C10: 87 | D10: 14 | E10: 64 | F10: 32 | G10: 86 | H10: 90 | I10: 57 | J10: 25 | K10: 72
A11: Quick Ratio | B11: 18 | C11: 86 | D11: 23 | E11: 14 | F11: 98 | G11: 93 | H11: 95 | I11: 2 | J11: 93 | K11: 79
A12: Return on Assets | B12: 98 | C12: 86 | D12: 48 | E12: 32 | F12: 61 | G12: 31 | H12: 21 | I12: 83 | J12: 35 | K12: 4

Sheet Cash Flow
A1: Altitude Equipment Rentals, LLC
A2: Statement of Cash Flows
A3: January - October, 2014
B5: Jan 2014 | C5: Feb 2014 | D5: Mar 2014 | E5: Apr 2014 | F5: May 2014 | G5: Jun 2014 | H5: Jul 2014 | I5: Aug 2014 | J5: Sep 2014 | K5: Oct 2014 | L5: Total
A6: OPERATING ACTIVITIES
A7: Net Income | B7: =RANDBETWEEN(1,100) -> 22 | C7: 9 | D7: 59 | E7: 96 | F7: 30 | G7: 76 | H7: 2 | I7: 43 | J7: 3 | K7: 88 | L7: 32
A8: Adjustments to reconcile Net Income to Net Cash provided by operations: | L8: =(((((((((B8)+(C8))+(D8))+(E8))+(F8))+(G8))+(H8))+(I8))+(J8))+(K8) -> 0
A9: Accounts Receivable (A/R) | B9: 68 | C9: 31 | D9: 69 | E9: 95 | F9: 74 | G9: 20 | H9: 97 | I9: 37 | J9: 51 | K9: 2 | L9: 20
A10: Inventory Asset | B10: 29 | C10: 57 | D10: 100 | E10: 99 | F10: 41 | G10: 62 | H10: 26 | I10: 64 | J10: 9 | K10: 14 | L10: 46
A11: Prepaid Expenses:Prepaid Insurance | B11: 12 | C11: 81 | D11: 78 | E11: 84 | F11: 63 | G11: 97 | H11: 45 | I11: 31 | J11: 34 | K11: 77 | L11: 67
A12: Leasehold Improvements:Accumulated Depreciation | B12: 71 | C12: 98 | D12: 73 | E12: 49 | F12: 3 | G12: 58 | H12: 59 | I12: 40 | J12: 79 | K12: 21 | L12: 86
A13: Other fixed assets:Accumulated Depreciation | B13: 22 | C13: 49 | D13: 49 | E13: 1 | F13: 40 | G13: 11 | H13: 43 | I13: 1 | J13: 74 | K13: 94 | L13: 70
A14: Rental Equipment:Accumulated Depreciation | B14: 98 | C14: 35 | D14: 67 | E14: 49 | F14: 36 | G14: 84 | H14: 24 | I14: 79 | J14: 3 | K14: 66 | L14: 35
A15: Shop Tools:Accumulated Depreciation | B15: 64 | C15: 95 | D15: 81 | E15: 87 | F15: 18 | G15: 60 | H15: 66 | I15: 22 | J15: 57 | K15: 45 | L15: 2
A16: Vehicles:Accumulated Depreciation | B16: 1 | C16: 7 | D16: 88 | E16: 45 | F16: 32 | G16: 94 | H16: 69 | I16: 58 | J16: 71 | K16: 65 | L16: 57
A17: Accounts Payable (A/P) | B17: 60 | C17: 88 | D17: 68 | E17: 85 | F17: 64 | G17: 64 | H17: 89 | I17: 72 | J17: 31 | K17: 21 | L17: 27
A18: Visa Account (XXXXXXXXXXXX 2915) | B18: 17 | C18: 30 | D18: 83 | E18: 57 | F18: 60 | G18: 18 | H18: 37 | I18: 87 | J18: 28 | K18: 34 | L18: 44
A19: Visa Account (XXXXXXXXXXXXXXX 3111) | B19: 61 | C19: 84 | D19: 65 | E19: 45 | F19: 88 | G19: 82 | H19: 64 | I19: 66 | J19: 44 | K19: 32 | L19: 16
A20: Sales tax payable | B20: 36 | C20: 21 | D20: 12 | E20: 29 | F20: 5 | G20: 50 | H20: 9 | I20: 11 | J20: 71 | K20: 36 | L20: 98
A21: Utah State Tax Payable | B21: 77 | C21: 86 | D21: 24 | E21: 78 | F21: 29 | G21: 45 | H21: 2 | I21: 38 | J21: 4 | K21: 78 | L21: 36
A22: Wages Payable | B22: 53 | C22: 48 | D22: 83 | E22: 58 | F22: 13 | G22: 2 | H22: 4 | I22: 91 | J22: 70 | K22: 55 | L22: 41
A23: Net cash provided by operating activities | B23: =(((((((((((((((B7)+(B8))+(B9))+(B10))+(B11))+(B12))+(B13))+(B14))+(B15))+(B16))+(B17))+(B18))+(B19))+(B20))+(B21))+(B22) -> 691 | C23: 819 | D23: 999 | E23: 957 | F23: 596 | G23: 823 | H23: 636 | I23: 740 | J23: 629 | K23: 728 | L23: 7618
A24: INVESTING ACTIVITIES
A25: Leasehold Improvements:Original Cost | B25: =RANDBETWEEN(1,100) -> 61 | C25: 20 | D25: 79 | E25: 76 | F25: 37 | G25: 58 | H25: 79 | I25: 54 | J25: 21 | K25: 50 | L25: 69
A26: Rental Equipment:Original Cost | B26: 18 | C26: 59 | D26: 71 | E26: 58 | F26: 88 | G26: 16 | H26: 29 | I26: 17 | J26: 52 | K26: 11 | L26: 47
A27: Net cash provided by investing activities | B27: =(B25)+(B26) -> 79 | C27: 79 | D27: 150 | E27: 134 | F27: 125 | G27: 74 | H27: 108 | I27: 71 | J27: 73 | K27: 61 | L27: =(((((((((B27)+(C27))+(D27))+(E27))+(F27))+(G27))+(H27))+(I27))+(J27))+(K27) -> 954
A28: FINANCING ACTIVITIES
A29: Notes Payable | B29: =RANDBETWEEN(1,100) -> 83 | C29: 25 | D29: 97 | E29: 57 | F29: 59 | G29: 51 | H29: 41 | I29: 40 | J29: 46 | K29: 2 | L29: 55
A30: Shane Olson Contributions | B30: 39 | C30: 49 | D30: 58 | E30: 2 | F30: 6 | G30: 91 | H30: 61 | I30: 77 | J30: 58 | K30: 23 | L30: 9
A31: Net cash provided by financing activities | B31: =(B29)+(B30) -> 122 | C31: 74 | D31: 155 | E31: 59 | F31: 65 | G31: 142 | H31: 102 | I31: 117 | J31: 104 | K31: 25 | L31: =(((((((((B31)+(C31))+(D31))+(E31))+(F31))+(G31))+(H31))+(I31))+(J31))+(K31) -> 965
A32: Net cash increase for period | B32: =((B23)+(B27))+(B31) -> 892 | C32: 972 | D32: 1304 | E32: 1150 | F32: 786 | G32: 1039 | H32: 846 | I32: 928 | J32: 806 | K32: 814 | L32: 9537
A33: Cash at beginning of period | L33: 0
A34: Cash at end of period | B34: =(B32)+(B33) -> 892 | C34: 972 | D34: 1304 | E34: 1150 | F34: 786 | G34: 1039 | H34: 846 | I34: 928 | J34: 806 | K34: 814 | L34: 9537
A38: Friday, Nov 21, 2014 03:03:08 PM PST GMT-7

Sheet Profit & Loss
A1: Altitude Equipment Rentals, LLC
A2: Profit and Loss
A3: January - October, 2014
B5: Jan 2014 | C5: Feb 2014 | D5: Mar 2014 | E5: Apr 2014 | F5: May 2014 | G5: Jun 2014 | H5: Jul 2014 | I5: Aug 2014 | J5: Sep 2014 | K5: Oct 2014 | L5: Total
A6: Income
A7: Discounts/Cancelled Orders Given | B7: =RANDBETWEEN(1,100) -> 9 | C7: 63 | D7: 97 | E7: 32 | F7: 89 | G7: 78 | H7: 52 | I7: 83 | J7: 29 | K7: 44 | L7: 31
A8: Rental Revenue | B8: 23 | C8: 15 | D8: 29 | E8: 89 | F8: 7 | G8: 87 | H8: 72 | I8: 9 | J8: 77 | K8: 70 | L8: 64
A9: Retail Revenue | B9: 87 | C9: 76 | D9: 26 | E9: 51 | F9: 53 | G9: 15 | H9: 17 | I9: 90 | J9: 99 | K9: 21 | L9: 6
A10: Propane Revenue | B10: 56 | C10: 76 | D10: 49 | E10: 93 | F10: 38 | G10: 98 | H10: 97 | I10: 93 | J10: 67 | K10: 99 | L10: 83
A11: Total Retail Revenue | B11: =(B9)+(B10) -> 143 | C11: 152 | D11: 75 | E11: 144 | F11: 91 | G11: 113 | H11: 114 | I11: 183 | J11: 166 | K11: 120 | L11: =(((((((((B11)+(C11))+(D11))+(E11))+(F11))+(G11))+(H11))+(I11))+(J11))+(K11) -> 1301
A12: Service Revenue | B12: 60 | C12: 89 | D12: 53 | E12: 91 | F12: 37 | G12: 91 | H12: 73 | I12: 77 | J12: 42 | K12: 1 | L12: 64
A13: U-Haul Revenue | B13: 100 | C13: 68 | D13: 81 | E13: 56 | F13: 69 | G13: 11 | H13: 69 | I13: 35 | J13: 27 | K13: 43 | L13: 85
A14: Total Income | B14: =((((B7)+(B8))+(B11))+(B12))+(B13) -> 335 | C14: 387 | D14: 335 | E14: 412 | F14: 293 | G14: 380 | H14: 380 | I14: 387 | J14: 341 | K14: 278 | L14: 3528
A15: Cost of Goods Sold
A16: Cost of Goods Sold | B16: =RANDBETWEEN(1,100) -> 89 | C16: 88 | D16: 90 | E16: 42 | F16: 30 | G16: 20 | H16: 69 | I16: 73 | J16: 38 | K16: 52 | L16: 96
A17: Propane COGS | B17: 2 | C17: 55 | D17: 17 | E17: 43 | F17: 96 | G17: 84 | H17: 84 | I17: 66 | J17: 65 | K17: 88 | L17: 94
A18: Total Cost of Goods Sold | B18: =(B16)+(B17) -> 91 | C18: 143 | D18: 107 | E18: 85 | F18: 126 | G18: 104 | H18: 153 | I18: 139 | J18: 103 | K18: 140 | L18: =(((((((((B18)+(C18))+(D18))+(E18))+(F18))+(G18))+(H18))+(I18))+(J18))+(K18) -> 1191
A19: Cost of U-Haul Sales | B19: =RANDBETWEEN(1,100) -> 2 | C19: =189.53 -> 189.53 | D19: =863.6 -> 863.6 | E19: =491.84 -> 491.84 | F19: =1126.18 -> 1126.18 | G19: =480.33 -> 480.33 | H19: =509.52 -> 509.52 | I19: =555.37 -> 555.37 | J19: =437.5 -> 437.5 | K19: =392.66 -> 392.66 | L19: 5048.53
A20: Total Cost of Goods Sold | B20: =(B18)+(B19) -> 93 | C20: 332.53 | D20: 970.6 | E20: 576.84 | F20: 1252.18 | G20: 584.33 | H20: 662.52 | I20: 694.37 | J20: 540.5 | K20: 532.66 | L20: 6239.53
A21: Gross Profit | B21: =(B14)-(B20) -> 242 | C21: 54.47 | D21: -635.6 | E21: -164.84 | F21: -959.18 | G21: -204.33 | H21: -282.52 | I21: -307.37 | J21: -199.5 | K21: -254.66 | L21: -2711.53
A22: Expenses
A23: Advertising | B23: =RANDBETWEEN(1,100) -> 25 | C23: 90 | D23: 32 | E23: 99 | F23: 79 | G23: 20 | H23: 7 | I23: 18 | J23: 54 | K23: 8 | L23: 56
A24: Bad Debts | B24: 25 | C24: 25 | D24: 90 | E24: 83 | F24: 65 | G24: 9 | H24: 64 | I24: 67 | J24: 78 | K24: 22 | L24: 42
A25: Bank Charges | B25: 70 | C25: 44 | D25: 73 | E25: 57 | F25: 63 | G25: 98 | H25: 91 | I25: 82 | J25: 69 | K25: 17 | L25: 54
A26: Building Maintenance | B26: 8 | C26: 90 | D26: 16 | E26: 71 | F26: 1 | G26: 58 | H26: 96 | I26: 2 | J26: 30 | K26: 71 | L26: 8
A27: Commissions & fees | B27: 80 | C27: 72 | D27: 11 | E27: 71 | F27: 18 | G27: 26 | H27: 94 | I27: 57 | J27: 34 | K27: 64 | L27: 15
A28: Contract Labor | B28: 73 | C28: 57 | D28: 15 | E28: 61 | F28: 85 | G28: 90 | H28: 4 | I28: 37 | J28: 92 | K28: 94 | L28: 48
A29: Disposal Fees | B29: 33 | C29: 16 | D29: 97 | E29: 4 | F29: 76 | G29: 47 | H29: 67 | I29: 55 | J29: 97 | K29: 77 | L29: 82
A30: Dues & subscriptions | B30: 72 | C30: 60 | D30: 59 | E30: 64 | F30: 79 | G30: 96 | H30: 2 | I30: 13 | J30: 73 | K30: 74 | L30: 90
A31: Fuel - Large Machinery | B31: 28 | C31: 63 | D31: 72 | E31: 16 | F31: 27 | G31: 40 | H31: 16 | I31: 65 | J31: 95 | K31: 40 | L31: 19
A32: Fuel - Small Machinery | B32: 24 | C32: 68 | D32: 61 | E32: 7 | F32: 49 | G32: 9 | H32: 43 | I32: 92 | J32: 76 | K32: 90 | L32: 32
A33: Fuel - Vehicles | B33: 22 | C33: 17 | D33: 6 | E33: 30 | F33: 46 | G33: 69 | H33: 53 | I33: 53 | J33: 74 | K33: 92 | L33: 81
A34: Insurance | B34: 98 | C34: 36 | D34: 61 | E34: 11 | F34: 46 | G34: 75 | H34: 58 | I34: 97 | J34: 38 | K34: 100 | L34: 11
A35: Interest Expense | B35: 76 | C35: 28 | D35: 53 | E35: 56 | F35: 78 | G35: 83 | H35: 78 | I35: 97 | J35: 17 | K35: 89 | L35: 93
A36: Late Fees | B36: 35 | C36: 32 | D36: 79 | E36: 19 | F36: 90 | G36: 36 | H36: 30 | I36: 39 | J36: 73 | K36: 71 | L36: 44
A37: Legal & Professional Fees | B37: 79 | C37: 69 | D37: 7 | E37: 77 | F37: 62 | G37: 93 | H37: 1 | I37: 73 | J37: 61 | K37: 42 | L37: 29
A38: Accounting/Order Software Fees | B38: 72 | C38: 40 | D38: 31 | E38: 29 | F38: 1 | G38: 8 | H38: 97 | I38: 94 | J38: 64 | K38: 42 | L38: 75
A39: Alarm System Monitoring | B39: =RANDBETWEEN(1,100) -> 95 | C39: 18 | D39: 75 | E39: 17 | F39: 92 | G39: 41 | H39: 70 | I39: 28 | J39: 7 | K39: 81 | L39: 74
A40: Legal Fees | B40: 32 | C40: 37 | D40: 13 | E40: 18 | F40: 18 | G40: 86 | H40: 49 | I40: 39 | J40: 82 | K40: 51 | L40: 52
A41: Merchant Processing Fees | B41: 19 | C41: 69 | D41: 55 | E41: 39 | F41: 69 | G41: 77 | H41: 65 | I41: 84 | J41: 44 | K41: 35 | L41: 79
A42: Payroll Servicing | B42: 67 | C42: 99 | D42: 15 | E42: 11 | F42: 83 | G42: 43 | H42: 37 | I42: 22 | J42: 100 | K42: 26 | L42: 59
A43: Total Legal & Professional Fees | B43: =(((((B37)+(B38))+(B39))+(B40))+(B41))+(B42) -> 364 | C43: 332 | D43: 196 | E43: 191 | F43: 325 | G43: 348 | H43: 319 | I43: 340 | J43: 358 | K43: 277 | L43: =(((((((((B43)+(C43))+(D43))+(E43))+(F43))+(G43))+(H43))+(I43))+(J43))+(K43) -> 3050
A44: Meals and Entertainment | G44: =RANDBETWEEN(1,100) -> 63 | H44: 33 | I44: 34 | J44: 75 | K44: 31 | L44: 74
A45: Office Supplies | B45: =RANDBETWEEN(1,100) -> 15 | C45: 43 | D45: 10 | E45: 100 | F45: 35 | G45: 32 | H45: 50 | I45: 66 | J45: 11 | K45: 4 | L45: 28
A46: Other General and Admin Expenses | B46: 38 | C46: 17 | D46: 90 | E46: 98 | F46: 37 | G46: 93 | H46: 67 | I46: 14 | J46: 98 | K46: 57 | L46: 87
A47: Registration & Dues | B47: 68 | C47: 16 | D47: 31 | E47: 79 | F47: 41 | G47: 73 | H47: 49 | I47: 61 | J47: 99 | K47: 37 | L47: 87
A48: Rent or Lease | B48: 79 | C48: 68 | D48: 79 | E48: 98 | F48: 82 | G48: 14 | H48: 53 | I48: 3 | J48: 47 | K48: 72 | L48: 19
A49: Rental Equipment Maintenance | B49: 35 | C49: 18 | D49: 95 | E49: 23 | F49: 80 | G49: 75 | H49: 53 | I49: 4 | J49: 86 | K49: 94 | L49: 41
A50: Rental Equipment Repairs | B50: 41 | C50: 44 | D50: 23 | E50: 47 | F50: 36 | G50: 7 | H50: 44 | I50: 8 | J50: 18 | K50: 59 | L50: 99
A51: Rental Split | B51: 74 | C51: 28 | D51: 13 | E51: 3 | F51: 95 | G51: 70 | H51: 88 | I51: 3 | J51: 87 | K51: 78 | L51: 66
A52: Rerent Expense | B52: 5 | C52: 9 | D52: 58 | E52: 1 | F52: 52 | G52: 93 | H52: 5 | I52: 29 | J52: 48 | K52: 28 | L52: 78
A53: Salaries & Wages | B53: 1 | C53: 3 | D53: 64 | E53: 86 | F53: 17 | G53: 96 | H53: 29 | I53: 95 | J53: 76 | K53: 99 | L53: 56
A54: Auto/Cell Reimbursement | B54: 87 | C54: 3 | D54: 66 | E54: 73 | F54: 26 | G54: 18 | H54: 36 | I54: 63 | J54: 16 | K54: 9 | L54: 31
A55: Insurance Stipend | B55: 68 | C55: 3 | D55: 97 | E55: 61 | F55: 49 | G55: 77 | H55: 45 | I55: 28 | J55: 67 | K55: 96 | L55: 43
A56: Payroll Taxes | B56: 53 | C56: 45 | D56: 83 | E56: 87 | F56: 86 | G56: 7 | H56: 94 | I56: 12 | J56: 8 | K56: 70 | L56: 96
A57: Total Salaries & Wages | B57: =(((B53)+(B54))+(B55))+(B56) -> 209 | C57: 54 | D57: 310 | E57: 307 | F57: 178 | G57: 198 | H57: 204 | I57: 198 | J57: 167 | K57: 274 | L57: 2099
A58: Shipping and delivery expense | B58: =RANDBETWEEN(1,100) -> 22 | C58: 4 | D58: 41 | E58: 34 | F58: 44 | G58: 60 | H58: 88 | I58: 16 | J58: 5 | K58: 45 | L58: 53
A59: Transport | B59: 49 | C59: 29 | D59: 66 | E59: 29 | F59: 60 | G59: 42 | H59: 91 | I59: 67 | J59: 94 | K59: 98 | L59: 70
A60: Total Shipping and delivery expense | B60: =(B58)+(B59) -> 71 | C60: 33 | D60: 107 | E60: 63 | F60: 104 | G60: 102 | H60: 179 | I60: 83 | J60: 99 | K60: 143 | L60: 984
A61: Shop Supplies/Tools | B61: =RANDBETWEEN(1,100) -> 41 | C61: 55 | D61: 73 | E61: 28 | F61: 76 | G61: 93 | H61: 8 | I61: 40 | J61: 55 | K61: 25 | L61: 2
A62: Small Engine Repair | B62: 64 | C62: 13 | D62: 8 | E62: 63 | F62: 20 | G62: 61 | H62: 33 | I62: 99 | J62: 59 | K62: 37 | L62: 78
A63: Taxes & Licenses | B63: 76 | C63: 43 | D63: 18 | E63: 57 | F63: 40 | G63: 18 | H63: 54 | I63: 8 | J63: 17 | K63: 79 | L63: 77
A64: Utilities | B64: 13 | C64: 21 | D64: 67 | E64: 41 | F64: 12 | G64: 58 | H64: 35 | I64: 98 | J64: 25 | K64: 1 | L64: 55
A65: Vehicle Maintenance | B65: 59 | C65: 52 | D65: 63 | E65: 24 | F65: 15 | G65: 98 | H65: 34 | I65: 85 | J65: 28 | K65: 98 | L65: 64
A66: Total Expenses | B66: =((((((((((((((((((((((((((((((B23)+(B24))+(B25))+(B26))+(B27))+(B28))+(B29))+(B30))+(B31))+(B32))+(B33))+(B34))+(B35))+(B36))+(B43))+(B44))+(B45))+(B46))+(B47))+(B48))+(B49))+(B50))+(B51))+(B52))+(B57))+(B60))+(B61))+(B62))+(B63))+(B64))+(B65) -> 1921 | C66: 1544 | D66: 1966 | E66: 1872 | F66: 2030 | G66: 2252 | H66: 2011 | I66: 1947 | J66: 2277 | K66: 2303 | L66: 20123
A67: Net Operating Income | B67: =(B21)-(B66) -> -1679 | C67: -1489.53 | D67: -2601.6 | E67: -2036.84 | F67: -2989.18 | G67: -2456.33 | H67: -2293.52 | I67: -2254.37 | J67: -2476.5 | K67: -2557.66 | L67: -22834.53
A68: Other Income
A69: Gain on Sale of Rental Equipment | B69: =RANDBETWEEN(1,100) -> 97 | C69: 34 | D69: 74 | E69: 82 | F69: 41 | G69: 100 | H69: 57 | I69: 17 | J69: 78 | K69: 43 | L69: 86
A70: Interest Earned | B70: 28 | C70: 53 | D70: 32 | E70: 93 | F70: 50 | G70: 32 | H70: 72 | I70: 86 | J70: 55 | K70: 83 | L70: 54
A71: Loss on Sale of Equipment | B71: 22 | C71: 64 | D71: 84 | E71: 82 | F71: 29 | G71: 87 | H71: 29 | I71: 16 | J71: 16 | K71: 33 | L71: 79
A72: Total Other Income | B72: =((B69)+(B70))+(B71) -> 147 | C72: 151 | D72: 190 | E72: 257 | F72: 120 | G72: 219 | H72: 158 | I72: 119 | J72: 149 | K72: 159 | L72: =(((((((((B72)+(C72))+(D72))+(E72))+(F72))+(G72))+(H72))+(I72))+(J72))+(K72) -> 1669
A73: Other Expenses
A74: Depreciation Expense | B74: =RANDBETWEEN(1,100) -> 64 | C74: 2 | D74: 81 | E74: 45 | F74: 65 | G74: 10 | H74: 55 | I74: 57 | J74: 37 | K74: 99 | L74: 55
A75: Miscellaneous | B75: 58 | C75: 66 | D75: 29 | E75: 24 | F75: 75 | G75: 57 | H75: 28 | I75: 43 | J75: 48 | K75: 83 | L75: 44
A76: Total Other Expenses | B76: =(B74)+(B75) -> 122 | C76: 68 | D76: 110 | E76: 69 | F76: 140 | G76: 67 | H76: 83 | I76: 100 | J76: 85 | K76: 182 | L76: =(((((((((B76)+(C76))+(D76))+(E76))+(F76))+(G76))+(H76))+(I76))+(J76))+(K76) -> 1026
A77: Net Other Income | B77: =(B72)-(B76) -> 25 | C77: 83 | D77: 80 | E77: 188 | F77: -20 | G77: 152 | H77: 75 | I77: 19 | J77: 64 | K77: -23 | L77: =(((((((((B77)+(C77))+(D77))+(E77))+(F77))+(G77))+(H77))+(I77))+(J77))+(K77) -> 643
A78: Net Income | B78: =(B67)+(B77) -> -1654 | C78: -1406.53 | D78: -2521.6 | E78: -1848.84 | F78: -3009.18 | G78: -2304.33 | H78: -2218.52 | I78: -2235.37 | J78: -2412.5 | K78: -2580.66 | L78: =(((((((((B78)+(C78))+(D78))+(E78))+(F78))+(G78))+(H78))+(I78))+(J78))+(K78) -> -22191.53
A82: Friday, Nov 21, 2014 02:34:06 PM PST GMT-7 - Accrual Basis

Sheet Balance Sheet
A1: Altitude Equipment Rentals, LLC
A2: Balance Sheet
A3: As of October 31, 2014
B5: Jan 2014 | C5: Feb 2014 | D5: Mar 2014 | E5: Apr 2014 | F5: May 2014 | G5: Jun 2014 | H5: Jul 2014 | I5: Aug 2014 | J5: Sep 2014 | K5: Oct 2014
A6: ASSETS
A7: Current Assets
A8: Bank Accounts
A9: Basic Business Checking (XXXXXXX 55-9) | B9: =RANDBETWEEN(1,100) -> 1 | C9: 37 | D9: 39 | E9: 77 | F9: 37 | G9: 16 | H9: 88 | I9: 54 | J9: 18 | K9: 55
A10: Business Gold Stmt Savings (XXXXXXXX 57-4) | B10: 79 | C10: 59 | D10: 57 | E10: 2 | F10: 45 | G10: 95 | H10: 64 | I10: 11 | J10: 45 | K10: 26
A11: Cash Drawer | B11: 34 | C11: 84 | D11: 3 | E11: 74 | F11: 55 | G11: 58 | H11: 6 | I11: 30 | J11: 7 | K11: 17
A12: Total Bank Accounts | B12: =((B9)+(B10))+(B11) -> 114 | C12: 180 | D12: 99 | E12: 153 | F12: 137 | G12: 169 | H12: 158 | I12: 95 | J12: 70 | K12: 98
A13: Accounts Receivable
A14: Accounts Receivable (A/R) | B14: =RANDBETWEEN(1,100) -> 33 | C14: 26 | D14: 7 | E14: 97 | F14: 44 | G14: 76 | H14: 36 | I14: 91 | J14: 95 | K14: 36
A15: Total Accounts Receivable | B15: =B14 -> 33 | C15: 26 | D15: 7 | E15: 97 | F15: 44 | G15: 76 | H15: 36 | I15: 91 | J15: 95 | K15: 36
A16: Other current assets
A17: Inventory Asset | B17: =RANDBETWEEN(1,100) -> 79 | C17: 1 | D17: 12 | E17: 82 | F17: 13 | G17: 56 | H17: 49 | I17: 44 | J17: 52 | K17: 41
A18: Prepaid Expenses | B18: 1 | C18: 36 | D18: 37 | E18: 71 | F18: 6 | G18: 44 | H18: 5 | I18: 15 | J18: 82 | K18: 11
A19: Prepaid Insurance | B19: 56 | C19: 2 | D19: 50 | E19: 42 | F19: 1 | G19: 45 | H19: 70 | I19: 51 | J19: 11 | K19: 24
A20: Total Prepaid Expenses | B20: =(B18)+(B19) -> 57 | C20: 38 | D20: 87 | E20: 113 | F20: 7 | G20: 89 | H20: 75 | I20: 66 | J20: 93 | K20: 35
A21: Undeposited Funds | B21: =RANDBETWEEN(1,100) -> 4 | C21: 28 | D21: 83 | E21: 10 | F21: 17 | G21: 48 | H21: 37 | I21: 57 | J21: 15 | K21: 66
A22: Total Other current assets | B22: =((B17)+(B20))+(B21) -> 140 | C22: 67 | D22: 182 | E22: 205 | F22: 37 | G22: 193 | H22: 161 | I22: 167 | J22: 160 | K22: 142
A23: Total Current Assets | B23: =((B12)+(B15))+(B22) -> 287 | C23: 273 | D23: 288 | E23: 455 | F23: 218 | G23: 438 | H23: 355 | I23: 353 | J23: 325 | K23: 276
A24: Fixed Assets
A25: Leasehold Improvements | B25: =RANDBETWEEN(1,100) -> 21 | C25: 69 | D25: 90 | E25: 76 | F25: 66 | G25: 63 | H25: 60 | I25: 1 | J25: 48 | K25: 72
A26: Accumulated Depreciation | B26: 54 | C26: 94 | D26: 22 | E26: 66 | F26: 30 | G26: 71 | H26: 30 | I26: 32 | J26: 90 | K26: 85
A27: Original Cost | B27: 7 | C27: 4 | D27: 57 | E27: 95 | F27: 3 | G27: 3 | H27: 37 | I27: 67 | J27: 74 | K27: 23
A28: Total Leasehold Improvements | B28: =((B25)+(B26))+(B27) -> 82 | C28: 167 | D28: 169 | E28: 237 | F28: 99 | G28: 137 | H28: 127 | I28: 100 | J28: 212 | K28: 180
A29: Other fixed assets | B29: =RANDBETWEEN(1,100) -> 46 | C29: 57 | D29: 39 | E29: 76 | F29: 77 | G29: 23 | H29: 30 | I29: 85 | J29: 20 | K29: 70
A30: Accumulated Depreciation | B30: 19 | C30: 78 | D30: 89 | E30: 72 | F30: 28 | G30: 99 | H30: 45 | I30: 2 | J30: 36 | K30: 76
A31: Original Cost | B31: 92 | C31: 62 | D31: 81 | E31: 48 | F31: 65 | G31: 10 | H31: 93 | I31: 42 | J31: 83 | K31: 23
A32: Total Other fixed assets | B32: =((B29)+(B30))+(B31) -> 157 | C32: 197 | D32: 209 | E32: 196 | F32: 170 | G32: 132 | H32: 168 | I32: 129 | J32: 139 | K32: 169
A33: Rental Equipment | B33: =RANDBETWEEN(1,100) -> 88 | C33: 21 | D33: 19 | E33: 94 | F33: 90 | G33: 98 | H33: 48 | I33: 9 | J33: 86 | K33: 77
A34: Accumulated Depreciation | B34: 3 | C34: 99 | D34: 7 | E34: 73 | F34: 27 | G34: 22 | H34: 17 | I34: 89 | J34: 50 | K34: 3
A35: Original Cost | B35: 34 | C35: 32 | D35: 11 | E35: 5 | F35: 37 | G35: 45 | H35: 13 | I35: 41 | J35: 29 | K35: 8
A36: Total Rental Equipment | B36: =((B33)+(B34))+(B35) -> 125 | C36: 152 | D36: 37 | E36: 172 | F36: 154 | G36: 165 | H36: 78 | I36: 139 | J36: 165 | K36: 88
A37: Shop Tools | B37: =RANDBETWEEN(1,100) -> 1 | C37: =RANDBETWEEN(1,100) -> 90 | D37: 30 | E37: 99 | F37: 80 | G37: 46 | H37: 58 | I37: 66 | J37: 45 | K37: 31
A38: Accumulated Depreciation | B38: 86 | C38: 22 | D38: 22 | E38: 76 | F38: 75 | G38: 27 | H38: 83 | I38: 43 | J38: 51 | K38: 7
A39: Original Cost | B39: 12 | C39: 53 | D39: 82 | E39: 9 | F39: 88 | G39: 59 | H39: 40 | I39: 71 | J39: 46 | K39: 50
A40: Total Shop Tools | B40: =((B37)+(B38))+(B39) -> 99 | C40: 165 | D40: 134 | E40: 184 | F40: 243 | G40: 132 | H40: 181 | I40: 180 | J40: 142 | K40: 88
A41: Vehicles | C41: =B41 -> 0 | D41: 0 | E41: 0 | F41: 0 | G41: 0 | H41: 0 | I41: 0 | J41: 0 | K41: 0
A42: Accumulated Depreciation | B42: =RANDBETWEEN(1,100) -> 64 | C42: 35 | D42: 42 | E42: 38 | F42: 97 | G42: 76 | H42: 90 | I42: 68 | J42: 20 | K42: 3
A43: Original Cost | B43: 13 | C43: 66 | D43: 19 | E43: 18 | F43: 18 | G43: 47 | H43: 1 | I43: 41 | J43: 12 | K43: 17
A44: Total Vehicles | B44: =((B41)+(B42))+(B43) -> 77 | C44: 101 | D44: 61 | E44: 56 | F44: 115 | G44: 123 | H44: 91 | I44: 109 | J44: 32 | K44: 20
A45: Total Fixed Assets | B45: =((((B28)+(B32))+(B36))+(B40))+(B44) -> 540 | C45: 782 | D45: 610 | E45: 845 | F45: 781 | G45: 689 | H45: 645 | I45: 657 | J45: 690 | K45: 545
A46: TOTAL ASSETS | B46: =(B23)+(B45) -> 827 | C46: 1055 | D46: 898 | E46: 1300 | F46: 999 | G46: 1127 | H46: 1000 | I46: 1010 | J46: 1015 | K46: 821
A47: LIABILITIES AND EQUITY
A48: Liabilities
A49: Current Liabilities
A50: Accounts Payable
A51: Accounts Payable (A/P) | B51: =RANDBETWEEN(1,100) -> 37 | C51: 93 | D51: 89 | E51: 84 | F51: 70 | G51: 20 | H51: 86 | I51: 79 | J51: 92 | K51: 44
A52: Total Accounts Payable | B52: =B51 -> 37 | C52: 93 | D52: 89 | E52: 84 | F52: 70 | G52: 20 | H52: 86 | I52: 79 | J52: 92 | K52: 44
A53: Credit Cards
A54: Visa Account (XXXXXXXXXXXX 2915) | B54: =RANDBETWEEN(1,100) -> 78 | C54: 12 | D54: 56 | E54: 36 | F54: 67 | G54: 1 | H54: 83 | I54: 89 | J54: 3 | K54: 38
A55: Visa Account (XXXXXXXXXXXXXXX 3111) | B55: 82 | C55: 69 | D55: 84 | E55: 53 | F55: 22 | G55: 100 | H55: 48 | I55: 78 | J55: 60 | K55: 27
A56: Total Credit Cards | B56: =(B54)+(B55) -> 160 | C56: 81 | D56: 140 | E56: 89 | F56: 89 | G56: 101 | H56: 131 | I56: 167 | J56: 63 | K56: 65
A57: Other Current Liabilities
A58: Payroll Tax Payable | B58: =RANDBETWEEN(1,100) -> 30 | C58: 31 | D58: 42 | E58: 72 | F58: 66 | G58: 18 | H58: 38 | I58: 63 | J58: 29 | K58: 68
A59: Sales tax payable | B59: 32 | C59: 20 | D59: 20 | E59: 9 | F59: 46 | G59: 88 | H59: 78 | I59: 34 | J59: 19 | K59: 45
A60: Utah State Tax Payable | B60: 49 | C60: 44 | D60: 74 | E60: 53 | F60: 13 | G60: 5 | H60: 11 | I60: 6 | J60: 90 | K60: 9
A61: Wages Payable | B61: 6 | C61: 4 | D61: 81 | E61: 25 | F61: 43 | G61: 56 | H61: 85 | I61: 74 | J61: 26 | K61: 87
A62: Total Other Current Liabilities | B62: =(((B58)+(B59))+(B60))+(B61) -> 117 | C62: 99 | D62: 217 | E62: 159 | F62: 168 | G62: 167 | H62: 212 | I62: 177 | J62: 164 | K62: 209
A63: Total Current Liabilities | B63: =((B52)+(B56))+(B62) -> 314 | C63: 273 | D63: 446 | E63: 332 | F63: 327 | G63: 288 | H63: 429 | I63: 423 | J63: 319 | K63: 318
A64: Long-Term Liabilities
A65: Notes Payable | B65: =RANDBETWEEN(1,100) -> 6 | C65: 49 | D65: 45 | E65: 87 | F65: 33 | G65: 88 | H65: 36 | I65: 56 | J65: 19 | K65: 37
A66: Total Long-Term Liabilities | B66: =B65 -> 6 | C66: 49 | D66: 45 | E66: 87 | F66: 33 | G66: 88 | H66: 36 | I66: 56 | J66: 19 | K66: 37
A67: Total Liabilities | B67: =(B63)+(B66) -> 320 | C67: 322 | D67: 491 | E67: 419 | F67: 360 | G67: 376 | H67: 465 | I67: 479 | J67: 338 | K67: 355
A68: Equity
A69: Kelly Walker Contributions | B69: =RANDBETWEEN(1,100) -> 69 | C69: 25 | D69: 30 | E69: 89 | F69: 56 | G69: 93 | H69: 61 | I69: 47 | J69: 7 | K69: 48
A70: Opening Balance Equity | B70: 29 | C70: 63 | D70: 90 | E70: 48 | F70: 12 | G70: 18 | H70: 81 | I70: 85 | J70: 36 | K70: 31
A71: Retained Earnings | B71: 50 | C71: 84 | D71: 15 | E71: 46 | F71: 97 | G71: 44 | H71: 34 | I71: 37 | J71: 19 | K71: 8
A72: Shane Olson Contributions | B72: 93 | C72: 69 | D72: 75 | E72: 84 | F72: 85 | G72: 9 | H72: 87 | I72: 82 | J72: 39 | K72: 58
A73: Net Income | B73: 84 | C73: 31 | D73: 99 | E73: 91 | F73: 35 | G73: 38 | H73: 60 | I73: 55 | J73: 10 | K73: 66
A74: Total Equity | B74: =((((B69)+(B70))+(B71))+(B72))+(B73) -> 325 | C74: 272 | D74: 309 | E74: 358 | F74: 285 | G74: 202 | H74: 323 | I74: 306 | J74: 111 | K74: 211
A75: TOTAL LIABILITIES AND EQUITY | B75: =(B67)+(B74) -> 645 | C75: 594 | D75: 800 | E75: 777 | F75: 645 | G75: 578 | H75: 788 | I75: 785 | J75: 449 | K75: 566
A79: Friday, Nov 21, 2014 02:36:53 PM PST GMT-7 - Accrual Basis

Sheet Instructions
A15: Ratios | H15: Calculations
A16: Current Ratio | B16: =current assets/ current liabilities | H16: retail margin percentage
A17: A/R Turnover | B17: = credit sales/ average AR | H17: propane margin percentage
A18: Average collection period | B18: =# of days in period/A/R turnover | H18: Salary % of total income
A19: roe | B19: = net income/average equity
A20: roa
A21: quick ratio | B21: =cash/current liabilities
A22: inventory turnover
A23: asset turnover
A24: net margin
A25: nopat
A26: nopm
A27: sales growth
